Cogmind - Beta 15 @@@ ROGUE MODE // 2025.07.14 @ 17:35:17 Player: beans Result: Destroyed by B-36 Bruiser with Hammer Performance ------------- Evolutions (2) 1000 Regions Visited (4) 800 Robots Destroyed (74) 370 Value Destroyed (1532) 1532 Prototype IDs (6) 120 Alien Tech Used (0) 0 Bonus (35) 35 TOTAL SCORE: 3857 Bonus ------- High Alert Combat Kills 35 Cogmind --------- Core Integrity 0/550 Matter 300/300 Energy 100/100 System Corruption 0% Temperature Cool (0) Movement Core (50) Location -8/Materials Parts ------- > --- POWER (2) -------- (None) > --- PROPULSION (2) --- (None) > --- UTILITY (4) ------ Improved Targeting Computer > --- WEAPON (3) ------- Katana > --- INVENTORY (5) ---- Pulse Rifle Peak State ------------ > --- POWER ------------ Cooled Ion Engine > --- PROPULSION ------- Light Treads Improved Treads > --- UTILITY ---------- Compact Matter Pod Recoil Stabilizer Shield Generator > --- WEAPON ----------- Improved EM Shotgun Improved EM Shotgun Improved EM Shotgun > --- INVENTORY -------- Flight Unit Medium Matter Pod Medium Matter Pod Medium Matter Pod Improved Light Cannon [Rating: 23] Favorites ----------- Power Cooled Ion Engine Engine Cooled Ion Engine Propulsion Light Treads Treads Light Treads Flight Unit Flight Unit Utility Compact Matter Pod Device Shield Generator Storage Compact Matter Pod Processor Improved Targeting Computer Hackware Hacking Suite Protection Core Shielding Weapon Improved EM Shotgun Energy Gun Improved EM Shotgun Energy Cannon Light EM Pulse Cannon Ballistic Gun Light Assault Rifle Ballistic Cannon Improved Light Cannon Special Weapon Welding Torch Slashing Weapon Blade Saw Build | -11 -10 -10 -9 -8 ------- Run | Yrd Mat Min Mat Mat Slots Evolved 4 | . . . 2 2 Power 1 | . . . . 1 Propulsion . | . . . . . Utility 2 | . . . 1 1 Weapon 1 | . . . 1 . Parts Attached 40 | 5 5 1 22 7 Power 5 | 1 . . 4 . Engine 5 | 1 . . 4 . Core . | . . . . . Reactor . | . . . . . Propulsion 7 | 2 2 . 2 1 Treads 4 | 2 . . 2 . Leg . | . . . . . Wheel . | . . . . . Hover . | . . . . . Flight 3 | . 2 . . 1 Utility 9 | . 1 1 5 2 Device 2 | . . . 2 . Storage 3 | . . 1 1 1 Processor 1 | . . . 1 . Hackware 1 | . . . . 1 Protection 2 | . 1 . 1 . Artifact . | . . . . . Weapon 19 | 2 2 . 11 4 Energy Gun 7 | . 2 . 3 2 Energy Cannon 1 | . . . 1 . Ballistic Gun 6 | 2 . . 4 . Ballistic Cannon 2 | . . . 2 . Launcher . | . . . . . Special Weapon 1 | . . . . 1 Impact Weapon . | . . . . . Slashing Weapon 2 | . . . 1 1 Piercing Weapon . | . . . . . Special Melee Weapon . | . . . . . Unidentified Prototypes 4 | . . . 4 . Parts Lost 28 | . 2 . 13 13 Power 2 | . . . 1 1 Propulsion 7 | . 2 . 3 2 Utility 5 | . . . 1 4 Weapon 14 | . . . 8 6 Highest Loss Streak 9 | . 2 . 9 7 To Critical Strikes . | . . . . . Average Backups 3 | . 2 5 3 3 Power . | . . . . . Propulsion . | . . . . . Utility 2 | . 2 3 2 1 Weapon . | . . 2 . . Tool/Special . | . . . . . Unused Backups 4 | . . . 1 3 Power 1 | . . . 1 . Propulsion . | . . . . . Utility 2 | . . . . 2 Weapon 1 | . . . . 1 Tool/Special . | . . . . . Average Slot Usage (%) 71 | . 73 95 77 42 Engine 9 | . 13 14 10 3 Treads 8 | . 12 . 9 4 Flight 5 | . 13 28 3 . Device 6 | . . . 9 1 Storage 9 | . . 9 14 . Processor 1 | . . . . 9 Protection 3 | . 6 14 3 2 Energy Gun 11 | . 5 28 11 15 Energy Cannon 1 | . . . 1 . Ballistic Gun 6 | . 22 . 3 . Ballistic Cannon 5 | . . . 8 . Slashing Weapon 1 | . . . 1 1 Peak Build Rating 23 | 5 6 9 23 19 Average Rating 12 | 3 5 8 15 10 On Entrance 7 | . 5 6 9 18 Naked Turns . | . . . . . Heaviest Build 23 | 5 7 8 23 22 Greatest Support 43 | 40 40 8 43 20 Greatest Overweight (x) 5 | . 1 . 5 1 Average Overweight (x) . | . . . . . Largest Inventory Capacity 5 | 5 5 5 5 5 Average Capacity 5 | 5 5 5 5 5 Most Carried 5 | 5 5 5 5 5 Average Carried 3 | . 3 5 3 3 Final Capacity 5 | 5 5 5 5 5 Final Carried 5 | . 5 5 5 1 Class Distribution -------------------- 59% | Mutant 26% | Tank 13% | Gunner Dominant Class ---------------- Mutant | -10/Materials Mutant | -10/Mines Mutant | -9/Materials Mutant | -8/Materials Resources | -11 -10 -10 -9 -8 ----------- Run | Yrd Mat Min Mat Mat Matter Collected 1609 | 231 160 296 862 60 Remotely . | . . . . . Salvage Created 2409 | . 125 30 1586 668 Parts 147 | . 13 1 104 29 Haulers Intercepted 6 | . 1 . 4 1 Recyclers Shooed 1 | . . . 1 . Parts Field Recycled . | . . . . . Retrieved Matter . | . . . . . Parts Self-Destructed . | . . . . . Prevented . | . . . . . Kills | -11 -10 -10 -9 -8 ------- Run | Yrd Mat Min Mat Mat Combat Hostiles Destroyed 37 | . 3 . 23 11 Melee 5 | . . . 3 2 Guns 17 | . 3 . 7 7 Cannons 11 | . . . 11 . AOE 4 | . . . 2 2 Classes Destroyed 11 | . 4 . 5 2 Worker 10 | . 1 1 8 . Builder 8 | . 1 . 6 1 Tunneler 1 | . . . 1 . Hauler 6 | . 1 . 4 1 Recycler 6 | . . . 6 . Operator 1 | . . . . 1 Watcher 5 | . . . 4 1 Swarmer 13 | . 3 . 8 2 Grunt 18 | . . . 11 7 Sentry 5 | . . . 4 1 Hunter 1 | . . . . 1 Best Kill Streak 13 | . 3 3 13 11 Combat Bots Only 6 | . 3 . 6 5 Max Kills in Single Turn 3 | . 2 1 3 2 Gunslinging 1 | . 1 . . 1 Exploded 2 | . . . 2 1 Melee 1 | . . . 1 1 Uniques/NPCs Destroyed . | . . . . . Combat | -11 -10 -10 -9 -8 -------- Run | Yrd Mat Min Mat Mat Hostile Shots Fired 374 | . 41 . 197 136 Missed 114 | . 15 . 54 45 Hits 260 | . 26 . 143 91 Melee 1 | . . . . 1 Projectile 259 | . 26 . 143 90 AOE 1 | . . . . 1 Critical Strikes 5 | . . . 3 2 Actively Blocked 1 | . . . 1 . Part Disruptions 1 | . . . . 1 Damage Taken 3386 | . 419 . 1626 1341 Core 1033 | . 89 . 377 567 Absorbed by Shields 143 | . . . 129 14 Redirected to Shielding 52 | . . . 52 . Core Remaining (%) 56 | 100 . 64 5 . Volleys Fired 177 | . 40 1 103 33 Largest 3 | . 2 2 3 3 Hottest 135 | . 80 80 135 135 Shots Fired 368 | . 80 2 209 77 Gun 230 | . 80 2 77 71 Cannon 135 | . . . 132 3 Launcher . | . . . . . Special 3 | . . . . 3 Kinetic 219 | . 57 . 159 3 Thermal 24 | . 5 1 . 18 Explosive . | . . . . . Electromagnetic 125 | . 18 1 50 56 Robot Hit Streak 15 | . 7 6 15 11 Robot Miss Streak 9 | . 9 . 4 4 Penetration Max . | . . . . . Secondary Targets 3 | . 1 . . 2 Max Gunslinging Chain 1 | . 1 . . 1 Shots Hit Robots 193 | . 15 2 124 52 Core Hits 102 | . 10 1 63 28 Critical Kills 1 | . . . 1 . Critical Parts Destroyed . | . . . . . Critical Strikes 9 | . . . 7 2 Burn 2 | . . . . 2 Destroy 1 | . . . 1 . Blast 4 | . . . 4 . Corrupt 1 | . . . 1 . Sever 1 | . . . 1 . Melee Attacks 32 | . . . 21 11 Impact . | . . . . . Slashing 32 | . . . 21 11 Piercing . | . . . . . Sneak Attacks 3 | . . . 2 1 Combat Hostiles . | . . . . . Follow-up Attacks . | . . . . . Damage Inflicted 4333 | . 234 25 2654 1420 Guns 1457 | . 172 25 495 765 Cannons 1510 | . . . 1468 42 Explosions 935 | . 62 . 502 371 Melee 416 | . . . 189 227 Ramming 5 | . . . . 5 Kinetic 1649 | . 110 . 1497 42 Thermal 905 | . 72 12 422 399 Explosive 164 | . . . 80 84 Electromagnetic 1194 | . 52 13 466 663 Impact . | . . . . . Slashing 416 | . . . 189 227 Piercing . | . . . . . Highest Corruption . | . . . . . Average Corruption . | . . . . . Corruption Purged . | . . . . . Corruption Blocked . | . . . . . Overload Shots . | . . . . . Overflow Damage 455 | . 22 . 276 157 Projectiles 33 | . . . 33 . Explosions 375 | . 22 . 243 110 Melee 47 | . . . . 47 Knockbacks 11 | . . . 11 . Impact . | . . . . . Kinetic 11 | . . . 11 . Secondary . | . . . . . Self-Inflicted Damage 515 | . 210 . 197 108 Shots 7 | . 2 . 3 2 Rammed 1 | . . . . 1 Targets Rammed 1 | . . . . 1 Kicked . | . . . . . Crushed . | . . . . . Highest Temperature 415 | . 120 28 227 415 Average Temperature 73 | . 37 18 58 117 Received Heat Transfer 760 | . . . 346 414 Effects 2 | . . . . 2 Shutdowns 1 | . . . . 1 Energy Bleed 1 | . . . . 1 Siege Activations . | . . . . . Martial Activations . | . . . . . Shielding Activations . | . . . . . Robots Disrupted . | . . . . . Combat Hostiles . | . . . . . Robots Corrupted . | . . . . . Combat Hostiles . | . . . . . Parts Fried 3 | . . . 1 2 Impact Corruptions . | . . . . . Robots Melted . | . . . . . Combat Hostiles . | . . . . . Parts Melted . | . . . . . Heat Transferred 1145 | . 75 25 250 795 Parts Sabotaged . | . . . . . Parts Stolen . | . . . . . Parts Stripped . | . . . . . Power Chain Reactions 6 | . . . 1 5 Alert | -11 -10 -10 -9 -8 ------- Run | Yrd Mat Min Mat Mat Maximum Alert Level 2 | . . . 2 1 Low Security (%) 50 | 100 100 100 46 9 Level 1 26 | . . . 18 90 Level 2 22 | . . . 34 . Level 3 . | . . . . . Level 4 . | . . . . . Level 5 . | . . . . . High Security . | . . . . . Max Security . | . . . . . Peak Influence 530 | . 88 6 530 386 Initial 212 | . . 1 . 212 Average 196 | . 24 1 224 292 Influence Increases 1628 | . 145 5 998 480 Destroy 0b10 Robot/C 740 | . 60 . 460 220 Destroy 0b10 Robot/NC 185 | . 15 5 145 20 Destroy Leader 182 | . 12 . 116 54 Successful Hack 10 | . . . 10 . Disable Machine 270 | . 30 . 180 60 Destroy Structure 136 | . 28 . 72 36 Lose Combat Pursuer 105 | . . . 15 90 Influence Decreases 1264 | . 140 10 494 620 Entered New Map 296 | . . 4 . 292 Time Decay 723 | . 120 6 399 198 Lost Part 245 | . 20 . 95 130 Squads Dispatched 8 | . 1 . 3 4 Investigation 2 | . . . 2 . Extermination . | . . . . . Reinforcement 3 | . 1 . 1 1 Assault . | . . . . . Garrison 3 | . . . . 3 Intercept . | . . . . . Searches Triggered . | . . . . . Construction Impeded 1 | . . . 1 . Haulers Reinforced . | . . . . . Active Scanning Responses . | . . . . . Cargo Convoy Interrupts . | . . . . . Stealth | -11 -10 -10 -9 -8 --------- Run | Yrd Mat Min Mat Mat Distress Signals 4 | . . . 3 1 Communications Jammed . | . . . . . Distress Signals . | . . . . . Times Spotted 62 | . 8 . 35 19 Peak Tracking Total 5 | . 3 . 5 3 Tactical Retreats 6 | . . . 1 5 Traps | -11 -10 -10 -9 -8 ------- Run | Yrd Mat Min Mat Mat Traps Triggered 3 | . 2 . 1 . Indirectly . | . . . . . Trap Hack Attempts . | . . . . . Triggered . | . . . . . Disarmed . | . . . . . Reprogrammed . | . . . . . Reused . | . . . . . Traps Extracted . | . . . . . Installed . | . . . . . Triggered . | . . . . . Machines | -11 -10 -10 -9 -8 ---------- Run | Yrd Mat Min Mat Mat Machines Disabled 18 | . 2 . 12 4 Max in Single Turn 3 | . 2 . 2 3 Machines Repaired . | . . . . . Machines Dismantled . | . . . . . Machines Sabotaged . | . . . . . Overloaded Fab Kills . | . . . . . Hacking | -11 -10 -10 -9 -8 --------- Run | Yrd Mat Min Mat Mat Machines Accessed 7 | . . . 6 1 Terminals 6 | . . . 5 1 Fabricators . | . . . . . Repair Stations . | . . . . . Recycling Units 1 | . . . 1 . Scanalyzers . | . . . . . Garrison Access . | . . . . . Total Hacks 16 | . . . 14 2 Successful 8 | . . . 6 2 Failed 8 | . . . 8 . Catastrophic 1 | . . . 1 . Database Lockouts . | . . . . . Manual . | . . . . . Terminals 14 | . . . 12 2 Fabricators . | . . . . . Repair Stations . | . . . . . Recycling Units 2 | . . . 2 . Scanalyzers . | . . . . . Garrison Access . | . . . . . Terminal Hacks 7 | . . . 5 2 Record 1 | . . . 1 . Robot Analysis 1 | . . . 1 . Prototype ID Bank 1 | . . . 1 . Emergency Access Points 1 | . . . . 1 Alert Level 1 | . . . 1 . Dispatch Records 1 | . . . . 1 Zone Layout 1 | . . . 1 . Fabricator Hacks . | . . . . . Repair Station Hacks . | . . . . . Recycling Unit Hacks 1 | . . . 1 . Retrieve Components 1 | . . . 1 . Scanalyzer . | . . . . . Garrison Access Hacks . | . . . . . Unauthorized Hacks . | . . . . . Terminals . | . . . . . Fabricators . | . . . . . Repair Stations . | . . . . . Recycling Units . | . . . . . Scanalyzers . | . . . . . Garrison Access . | . . . . . Data Cores Recovered . | . . . . . Used . | . . . . . Hacking Detections 5 | . . . 5 . Full Trace Events 1 | . . . 1 . Feedback Events . | . . . . . Feedback Blocked . | . . . . . Robot Schematics Acquired . | . . . . . Robots Built . | . . . . . Authchips . | . . . . . Time . | . . . . . Total Robot Build Rating . | . . . . . Part Schematics Acquired . | . . . . . Parts Built . | . . . . . Authchips . | . . . . . Time . | . . . . . Total Part Build Rating . | . . . . . Parts Repaired . | . . . . . Time . | . . . . . Parts Recycled . | . . . . . Recycled Matter . | . . . . . Retrieved Matter . | . . . . . Retrieved Components 9 | . . . 9 . Parts Scanalyzed . | . . . . . Part Schematics Acquired . | . . . . . Parts Damaged . | . . . . . Bothacking | -11 -10 -10 -9 -8 ------------ Run | Yrd Mat Min Mat Mat Used RIF Installer . | . . . . . Robots Hacked . | . . . . . Non-combat . | . . . . . Combat . | . . . . . Robot Hacks Applied . | . . . . . Relay Couplers Released . | . . . . . Fabnet Peak Effective % . | . . . . . Robots Rewired . | . . . . . Allies Hacked . | . . . . . Hacks Repelled . | . . . . . Allies | -11 -10 -10 -9 -8 -------- Run | Yrd Mat Min Mat Mat Total Allies . | . . . . . Largest Group . | . . . . . Highest-Rated Group . | . . . . . Highest-Rated Ally . | . . . . . Total Orders . | . . . . . Ally Attacks . | . . . . . Total Damage . | . . . . . Kills . | . . . . . Allies Corrupted . | . . . . . Allies Melted . | . . . . . Intel | -11 -10 -10 -9 -8 ------- Run | Yrd Mat Min Mat Mat Active Infowar (turns) . | . . . . . Robot Analysis Total 1 | . . . 1 . Derelict Logs Recovered . | . . . . . Drone Launches . | . . . . . Drone Recoveries . | . . . . . Exploration | -11 -10 -10 -9 -8 ------------- Run | Yrd Mat Min Mat Mat Turns Passed 2589 | 63 407 20 1697 402 Spaces Moved 1301 | 44 211 41 788 217 Core 204 | 15 14 . 39 136 Treads 755 | 29 92 . 558 76 Legs . | . . . . . Wheels . | . . . . . Hover . | . . . . . Flight 342 | . 105 41 191 5 Fastest Speed 37 | 50 37 37 50 40 Average Speed 133 | 122 94 37 160 97 Slowest Speed 300 | 160 160 37 300 240 Overloaded Moves . | . . . . . Propulsion Burnouts . | . . . . . Robots Hopped . | . . . . . Potential Cave-ins . | . . . . . Cave-ins Triggered . | . . . . . Exploration Rate (%) 29 | 4 46 14 66 17 Regions Visited 4 Branch Regions 1 Pre-discovered Areas . | . . . . . Known Exits Taken . | . . . . . Unknown Exits Taken 4 | 1 1 1 1 . Scrap Searched . | . . . . . Spaces Dug . | . . . . . Terrain Destroyed 155 | . 29 . 94 32 Melee . | . . . . . Projectile 6 | . . . 6 . AOE 149 | . 29 . 88 32 Terrain Rammed . | . . . . . Walls Destroyed . | . . . . . Machines Disabled . | . . . . . Actions | -11 -10 -10 -9 -8 --------- Run | Yrd Mat Min Mat Mat Total 1769 | 53 347 42 1000 327 Wait 159 | . 78 . 32 49 Move 1297 | 43 210 40 787 217 Hop . | . . . . . Pick Up 39 | 5 10 . 20 4 Fast Attach 10 | . 2 1 4 3 Attach 31 | 5 5 . 17 4 Detach . | . . . . . Swap 9 | . 2 . 6 1 Drop 14 | . . . 10 4 Fire 177 | . 40 1 103 33 Melee 32 | . . . 21 11 Ram 1 | . . . . 1 Kick . | . . . . . Crush . | . . . . . Escape Stasis . | . . . . . Rewire . | . . . . . Trap . | . . . . . Miscellaneous . | . . . . . Route ------- -11/Scrapyard -10/Materials (discovered 2 exits: *Mat / [*Min]) -10/Mines -9/Materials (discovered 2 exits: *Mat / [*Min]) -8/Materials History --------- Turn | Location | Event 7 | -11/Scrapyard | Discovered new exit (range 15) 64 | -11/Scrapyard | Entered Materials 281 | -10/Materials | Discovered new exit (range 15) 309 | -10/Materials | Build established: Mutant 320 | -10/Materials | Discovered new exit (range 16) 471 | -10/Materials | Entered Mines 484 | -10/Mines | Discovered new exit (range 3) 491 | -10/Mines | Entered Materials 491 | -9/Materials | Evolved 2 slots: Utility x1, Weapon x1 827 | -9/Materials | Core integrity fell below 50% 870 | -9/Materials | Lost 9 parts (1p2n1u5w) 1278 | -9/Materials | Core integrity fell below 20% 1290 | -9/Materials | Discovered new exit (range 9) 1532 | -9/Materials | Discovered new exit (range 15) 1954 | -9/Materials | Build established: Tank 2188 | -9/Materials | Entered another Materials area 2188 | -8/Materials | Evolved 2 slots: Power x1, Utility x1 2341 | -8/Materials | Garrison activated, responded to threat 2416 | -8/Materials | Core integrity fell below 50% 2427 | -8/Materials | Lost 7 parts (1p1n1u4w) 2444 | -8/Materials | Core integrity fell below 20% 2590 | -8/Materials | Destroyed by B-36 Bruiser with Hammer Last Messages --------------- Drone sends a signal. Slug penetrates Wall. Flight Unit destroyed. The unstable cave ceiling collapses. Slug penetrates Wall. Acquired Katana. K-01 Serf collects debris. Slug penetrates Wall. Destroyed Lgt. Nuclear Core. Penetrated by Slug. Welding Torch destroyed. H-55 Commando destroyed. Acquired 20 matter. U-05 Engineer lays Concrete. G-47 Trooper destroyed. U-05 Engineer lays Concrete. Sneak attack on T-07 Excavator. Destroyed Mining Laser. U-05 Engineer lays Concrete. Processing Tank disabled. Map ----- +----------------------------------------------------+ | ??# """ # # # #????????? | | ??# " %" # +????????? | | ???????####" %"######## #????????? | | ?????####### "#?#######"#######???? | | # T " ##?#[%[ ##### | | # """ #=*##?#!* ## | | ??? ?""""" #%="#?# ## "" | | ?????""""" =[!#### [ ## "" | | ? ?""""" =% / [[[ ## "" | | # """ + !!### [[ ## | | # #=%############### ### | | ??########## [% !!%!!= # ######## | | ????# !" [! = !!=% % = | | ????# # != %[ [ | | ????#""" + ### | | ????#""" # ##### ## | | ?????""" # #?#" ## | | ????? ! ####?#" ## | | ?????+#####?????#"" ### ## | | ????????????????### ## # | | ??????????????????# T ## # | | ??????????######### ## # | | ????????### ## % # | | ?????? ####+###"#### | | ?????######b####### ##[ | | ?????# @ # ! ## | | ?????# "" "" +=%[ ## | | ?????# "" "" ####### | | ?????# "" "" #?????# | | ?????# #?????# ! ] | | ?????##############?????############ | | | | | | | | | | | | | | | | | | | | | | | | | | | | | | | | | | | | | | | +----------------------------------------------------+ Best States ------------- Heat Dissipation 31 Energy Generation 14 Energy Capacity 480 Matter Stores 550 Matter Capacity 550 Sight Range 16 Terrain Scan Density 10 Armor Coverage 150 Core Shielding 20 Evasion (%) 62 Targeting Accuracy 6 Recoil Reduction 6 Offensive Hacking 10 Item Schematics ----------------- None Robot Schematics ------------------ None Fabricated ------------ Nothing Repaired ---------- Nothing Alien Tech Used ----------------- None Achievements -------------- None Challenges ------------ None Game ------ Seed CloakHoverScanner Manual? 0 Play Time 00:25:14 Cumulative 48.8 hours Start 2025.07.14 @ 17:01:54 End 2025.07.14 @ 17:35:17 Sessions 1 Manual Loads 0 Difficulty Rogue Special Mode None Game No. 228 Rogue 228 Adventurer 0 Explorer 0 Win Type - Total 0 Types 0/0/0/0/0/0/0/0/0/0 Lore% 32 Gallery% 27 Achievement% 23 Wizard Run 0 Options --------- Layout 2 ASCII 0 Keyboard 0 Movement Mouse Keybinds 0 Fullscreen 1 Font 24/Smallcaps Map View 50x44 Zoom Use 0% Tactical HUD 0 Map Filters NONE Filters NONE Steam 1 RUN: af39f75d-c546-45be-a5b5-466615395cf6